fUST/lending_fUST_20241013
["ID","MTS","AMOUNT","RATE_DAILY","PERIOD"]
[340198260,1728825032734,-166.666666,0.00026011,2]
[340198261,1728825032743,-250.0,0.00026014,2]
[340198262,1728825032752,-179.67739401,0.00026083,2]
[340198306,1728825040744,-70.32260599,0.00026083,2]
[340198307,1728825040753,-250.0,0.00026153,2]
[340198308,1728825040763,-152.0,0.0002617,2]
[340198309,1728825040773,-250.0,0.00026223,2]
[340198310,1728825040782,-250.0,0.00026293,2]
[340198311,1728825040793,-250.0,0.00026363,2]
[340198312,1728825040806,-250.0,0.00026432,2]
[340198313,1728825040815,-235.58830551,0.00026472,2]
[340198330,1728825041943,9796.94926589,0.0002552,2]
[340198367,1728825782371,166.666666,0.0002332,2]
[340198368,1728825782808,166.666666,0.00023956,2]
[340198371,1728825878351,248.92766,0.00023723,2]
[340198377,1728825945747,518.131615,0.00023729,2]
[340198381,1728826030146,-163.560233,0.00024304,2]
[340198382,1728826030184,-227.86401836,0.00024414,2]
[340198383,1728826039170,-290.26759664,0.00024414,2]
[340198384,1728826039192,-376.32596477,0.00024573,2]
[340198385,1728826066013,2910.3595492,0.00023717,2]
[340198387,1728826094080,250.0,0.00023908,2]
[340198388,1728826094291,250.0,0.00023973,2]
[340198389,1728826102153,24900.0,0.00023537,2]
[340198390,1728826120255,150.999999,0.00023,2]
[340198404,1728826152120,-250.0,0.00024039,2]
[340198405,1728826152145,-250.0,0.00024104,2]
[340198406,1728826152169,-250.0,0.0002417,2]
[340198407,1728826152190,-250.0,0.00024236,2]
[340198408,1728826152212,-250.0,0.00024301,2]
[340198409,1728826152236,-250.0,0.00024367,2]
[340198413,1728826174096,171.675077,0.00023489,2]
[340198419,1728826213038,6996.43747079,0.00023301,2]
[340198420,1728826213366,6996.43747079,0.00023755,2]
[340198421,1728826213693,3533.98174744,0.00024082,2]
[340198422,1728826213714,3462.45572335,0.00024082,2]
[340198423,1728826214080,6996.43747079,0.00024196,2]
[340198483,1728826231821,-250.0,0.00024432,2]
[340198485,1728826231832,-659.19225687,0.00024445,2]
[340198505,1728826238076,-6337.24521392,0.00024445,2]
[340198506,1728826238092,-892.81909274,0.00024473,2]
[340198507,1728826238105,-250.0,0.00024498,2]
[340198508,1728826238121,-250.0,0.00024563,2]
[340198509,1728826238136,-217.41399012,0.00024573,2]
[340198510,1728826238147,-166.666666,0.00024592,2]
[340198511,1728826238157,-250.0,0.00024629,2]
[340198512,1728826238171,-250.0,0.00024695,2]
[340198513,1728826238185,-191.05,0.00024744,2]
[340198514,1728826238197,-300.0,0.00024752,2]
[340198515,1728826238210,-300.0,0.00024752,2]
[340198516,1728826238224,-9003.34239834,0.00024752,2]
[340198517,1728826238235,-250.0,0.0002476,2]
[340198518,1728826238246,-500.0,0.00024773,2]
[340198519,1728826238259,-6996.43747079,0.00024804,2]
[340198520,1728826238271,-250.0,0.00024826,2]
[340198521,1728826238283,-250.0,0.00024891,2]
[340198522,1728826238295,-590.69881229,0.00024893,2]
[340198523,1728826238307,-5324.0211193,0.000249,2]
[340198524,1728826238332,-250.0,0.00024957,2]
[340198525,1728826238349,-501.4936316,0.00024973,2]
[340198526,1728826238366,-1798.81,0.0002499,3]
[340198527,1728826238380,-899.4,0.0002499,3]
[340198528,1728826238393,-449.7,0.0002499,3]
[340198529,1728826238407,-224.85,0.0002499,3]
[340198530,1728826238419,-674.58,0.0002499,3]
[340198531,1728826238432,-1399.48,0.0002499,10]
[340198532,1728826238446,-394.08996036,0.00025,2]
[340198533,1728826238459,-85453.69120281,0.00025,2]
[340198534,1728826238471,-6075.36249488,0.00025,2]
[340198535,1728826238483,-250.0,0.00025022,2]
[340198536,1728826238495,-152.0,0.0002504,2]
[340198537,1728826238507,-250.0,0.00025088,2]
[340198538,1728826238520,-518.131615,0.00025099,2]
[340198539,1728826238532,-250.0,0.00025153,2]
[340198540,1728826238544,-6996.43747079,0.00025201,2]
[340198541,1728826238556,-166.666666,0.00025228,2]
[340198542,1728826238568,-6996.43747079,0.00025278,2]
[340198543,1728826238580,-500.0,0.00025319,2]
[340198544,1728826238593,-500.0,0.00025319,2]
[340198545,1728826238605,-500.0,0.00025319,2]
[340198546,1728826238620,-500.0,0.00025319,2]
[340198547,1728826238633,-500.0,0.00025319,2]
[340198548,1728826238643,-500.0,0.00025319,2]
[340198549,1728826238654,-500.0,0.00025319,2]
[340198550,1728826238777,-500.0,0.00025319,2]
[340198551,1728826238787,-500.0,0.00025319,2]
[340198552,1728826238796,-421.46132038,0.00025319,2]
[340198553,1728826238805,-500.0,0.00025319,2]
[340198554,1728826238814,-500.0,0.00025319,2]
[340198555,1728826238824,-500.0,0.00025319,2]
[340198556,1728826238833,-500.0,0.00025319,2]
[340198557,1728826238842,-500.0,0.00025319,2]
[340198558,1728826238851,-500.0,0.00025319,2]
[340198559,1728826238861,-500.0,0.00025319,2]
[340198560,1728826238870,-500.0,0.00025319,2]
[340198561,1728826238884,-500.0,0.00025319,2]
[340198562,1728826238893,-500.0,0.00025319,2]
[340198563,1728826238903,-500.0,0.00025319,2]
[340198564,1728826238914,-500.0,0.00025319,2]
[340198565,1728826238924,-500.0,0.00025319,2]
[340198566,1728826238934,-500.0,0.00025319,2]
[340198567,1728826238945,-500.0,0.00025319,2]
[340198568,1728826238954,-500.0,0.00025319,2]
[340198569,1728826238965,-500.0,0.00025319,2]
[340198570,1728826238975,-495.26833005,0.00025319,2]
[340198571,1728826238984,-207.5431777,0.00025319,2]
[340198572,1728826238994,-500.0,0.00025319,2]
[340198573,1728826239003,-500.0,0.00025319,2]
[340198574,1728826239013,-500.0,0.00025319,2]
[340198575,1728826239023,-500.0,0.00025319,2]
[340198576,1728826239032,-326.65587887,0.00025319,2]
[340198577,1728826239043,-500.0,0.00025319,2]
[340198578,1728826239052,-500.0,0.00025319,2]
[340198579,1728826239061,-500.0,0.00025319,2]
[340198580,1728826239071,-500.0,0.00025319,2]
[340198581,1728826239081,-500.0,0.00025319,2]
[340198582,1728826239090,-500.0,0.00025319,2]
[340198583,1728826239099,-500.0,0.00025319,2]
[340198584,1728826239108,-500.0,0.00025319,2]
[340198585,1728826239118,-500.0,0.00025319,2]
[340198586,1728826239127,-500.0,0.00025319,2]
[340198587,1728826239137,-500.0,0.00025319,2]
[340198588,1728826239146,-500.0,0.00025319,2]
[340198589,1728826239156,-500.0,0.00025319,2]
[340198590,1728826239165,-500.0,0.00025319,2]
[340198591,1728826239176,-500.0,0.00025319,2]
[340198592,1728826239185,-500.0,0.00025319,2]
[340198593,1728826239195,-500.0,0.00025319,2]
[340198594,1728826239204,-500.0,0.00025319,2]
[340198595,1728826239214,-500.0,0.00025319,2]
[340198596,1728826239223,-500.0,0.00025319,2]
[340198597,1728826239233,-502.7369016,0.00025373,2]
[340198598,1728826239242,-602.49176059,0.0002542,2]
[340198599,1728826239252,-6996.43747079,0.00025528,2]
[340198600,1728826239262,-500.0,0.00025569,2]
[340198601,1728826239272,-335.46923547,0.00025569,2]
[340198602,1728826239282,-500.0,0.00025569,2]
[340198603,1728826239292,-500.0,0.00025673,2]
[340198604,1728826239301,-262.25716481,0.00025673,2]
[340198605,1728826239311,-500.0,0.00025758,2]
[340198606,1728826239321,-500.0,0.00025758,2]
[340198607,1728826239330,-500.0,0.00025758,2]
[340198608,1728826239340,-6996.43747079,0.00025817,2]
[340198609,1728826239350,-191.05,0.00025843,2]
[340198610,1728826239360,-166.666666,0.00025863,2]
[340198611,1728826239370,-161.68279538,0.00025873,2]
[340198612,1728826239380,-500.0,0.00025873,2]
[340198613,1728826239390,-150.61215566,0.00025914,2]
[340198614,1728826239400,-1000.0,0.00026142,2]
[340198615,1728826239411,-6996.43747085,0.00026169,2]
[340198616,1728826239420,-1816.95121133,0.00026333,2]
[340198617,1728826239430,-1816.95121129,0.00026343,2]
[340198618,1728826239439,-1816.95121129,0.00026353,2]
[340198619,1728826239450,-3597.62,0.0002636,3]
[340198620,1728826239460,-1798.8,0.0002636,3]
[340198621,1728826239470,-899.4,0.0002636,3]
[340198622,1728826239480,-449.7,0.0002636,3]
[340198623,1728826239493,-1816.95121129,0.00026363,2]
[340198624,1728826239504,-1816.95121129,0.00026373,2]
[340198625,1728826239515,-2271.94,0.00026423,3]
[340198626,1728826239525,-206.5314294,0.00026432,2]
[340198627,1728826239535,-286.59098299,0.00026432,2]
[340198628,1728826239544,-196.99336235,0.00026432,2]
[340198629,1728826239554,-398.09637107,0.00026432,2]
[340198630,1728826239564,-196.3484206,0.00026432,2]
[340198631,1728826239574,-170.61273046,0.00026432,2]
[340198632,1728826239584,-134636.283735,0.00026433,4]
[340198633,1728826239594,-427758.065459,0.00026433,4]
[340198634,1728826239605,-534.69335614,0.00026473,2]
[340198635,1728826239618,-500.0,0.00026473,2]
[340198636,1728826239628,-500.0,0.00026473,2]
[340198637,1728826239638,-500.0,0.00026473,2]
[340198638,1728826239648,-500.0,0.00026473,2]
[340198639,1728826239659,-500.0,0.00026473,2]
[340198640,1728826239668,-500.0,0.00026473,2]
[340198641,1728826239679,-267.54744929,0.00026473,2]
[340198642,1728826239689,-191.05,0.0002649,2]
[340198644,1728826239700,-1500.0,0.00026499,2]
[340198645,1728826239710,-166.666666,0.00026499,2]
[340198646,1728826239720,-13812.42155303,0.000265,15]
[340198647,1728826239730,-2763.18,0.000265,14]
[340198648,1728826239741,-1257.12,0.000265,14]
[340198649,1728826239751,-1500.0,0.00026773,2]
[340198650,1728826239760,-420.0,0.00026821,2]
[340198651,1728826239771,-202.63,0.00026928,2]
[340198652,1728826239781,-202.63,0.00026928,2]
[340198653,1728826239791,-202.63,0.00026928,2]
[340198654,1728826239800,-202.63,0.00026928,2]
[340198655,1728826239810,-202.63,0.00026928,2]
[340198656,1728826239820,-202.63,0.00026928,2]
[340198657,1728826239830,-202.63,0.00026928,2]
[340198658,1728826239839,-202.63,0.00026928,2]
[340198659,1728826239850,-202.63,0.00026928,2]
[340198660,1728826239860,-202.63,0.00026928,2]
[340198661,1728826239870,-44878.7612451,0.00026929,4]
[340198662,1728826239880,-142586.02182,0.00026929,4]
[340198663,1728826239890,-1000.0,0.00026939,2]
[340198664,1728826239900,-500.0,0.00026939,2]
[340198665,1728826239910,-1500.0,0.00027047,2]
[340198666,1728826239920,-500.0,0.00027128,2]
[340198667,1728826239929,-876.91819195,0.00027128,2]
[340198668,1728826239938,-152.0,0.0002713,7]
[340198669,1728826239953,-420.0,0.00027227,2]
[340198670,1728826239963,-500.0,0.00027373,2]
[340198671,1728826239972,-600.5241251,0.00027373,2]
[340198672,1728826239982,-972.78315594,0.0002739,2]
[340198673,1728826239992,-500.0,0.00027397,2]
[340198674,1728826240002,-567.71007976,0.00027397,2]
[340198675,1728826240012,-356.02125151,0.00027397,2]
[340198676,1728826240022,-500.0,0.00027397,2]
[340198677,1728826240031,-332.05885399,0.00027397,2]
[340198678,1728826240041,-507.62261026,0.00027397,2]
[340198679,1728826240051,-500.0,0.00027397,2]
[340198680,1728826240060,-500.0,0.00027397,2]
[340198682,1728826240071,-500.0,0.00027397,2]
[340198684,1728826240081,-197.35712859,0.00027397,2]
[340198685,1728826240090,-500.0,0.00027397,2]
[340198686,1728826240100,-520.48382836,0.00027397,2]
[340198687,1728826240110,-164.98957508,0.00027397,2]
[340198688,1728826240119,-290.66635936,0.00027397,2]
[340198689,1728826240129,-556.12612333,0.00027397,2]
[340198690,1728826240138,-10007.93,0.00027397,2]
[340198691,1728826240147,-419.05014871,0.00027397,2]
[340198692,1728826240157,-579.6587841,0.00027397,2]
[340198693,1728826240167,-500.0,0.00027397,2]
[340198694,1728826240177,-225.18265986,0.00027397,2]
[340198695,1728826240186,-156.3484763,0.00027397,2]
[340198696,1728826240197,-171.34166217,0.00027397,2]
[340198697,1728826240206,-573.74200867,0.00027397,2]
[340198698,1728826240216,-221.62682436,0.00027397,2]
[340198699,1728826240226,-831.87,0.00027397,2]
[340198700,1728826240236,-532.13236861,0.00027397,2]
[340198701,1728826240246,-213.80886441,0.00027397,2]
[340198702,1728826240255,-500.0,0.00027397,2]
[340198703,1728826240266,-598.60442733,0.00027397,2]
[340198704,1728826240276,-560.95124384,0.00027397,2]
[340198705,1728826240285,-517.41513424,0.00027397,2]
[340198706,1728826240295,-166.30229957,0.00027397,2]
[340198707,1728826240304,-2496.31,0.00027397,2]
[340198708,1728826240314,-500.0,0.00027397,2]
[340198709,1728826240323,-166.19518864,0.00027397,2]
[340198710,1728826240333,-474.97156623,0.00027397,2]
[340198711,1728826240343,-500.0,0.00027397,2]
[340198712,1728826240352,-224.24277896,0.00027397,2]
[340198713,1728826240362,-573.2649613,0.00027397,2]
[340198714,1728826240372,-241.43601245,0.00027397,2]
[340198715,1728826240382,-521.03567613,0.00027397,2]
[340198716,1728826240401,-500.0,0.00027397,2]
[340198717,1728826240414,-500.0,0.00027397,2]
[340198718,1728826240425,-500.0,0.00027397,2]
[340198719,1728826240434,-500.0,0.00027397,2]
[340198720,1728826240444,-500.0,0.00027397,2]
[340198721,1728826240454,-578.85748532,0.00027397,2]
[340198722,1728826240464,-500.0,0.00027397,2]
[340198723,1728826240474,-500.0,0.00027397,2]
[340198724,1728826240580,-500.0,0.00027397,2]
[340198725,1728826240589,-500.0,0.00027397,2]
[340198726,1728826240599,-500.0,0.00027397,2]
[340198727,1728826240613,-500.0,0.00027397,2]
[340198728,1728826240623,-512.5567681,0.00027397,2]
[340198729,1728826240633,-1286.17,0.00027397,2]
[340198730,1728826240642,-500.0,0.00027397,2]
[340198731,1728826240652,-500.0,0.00027397,2]
[340198732,1728826240661,-500.0,0.00027397,2]
[340198733,1728826240671,-500.0,0.00027397,2]
[340198734,1728826240681,-263.09993633,0.00027397,2]
[340198735,1728826240692,-500.0,0.00027397,2]
[340198736,1728826240701,-500.0,0.00027397,2]
[340198737,1728826240711,-500.0,0.00027397,2]
[340198738,1728826240720,-500.0,0.00027397,2]
[340198739,1728826240729,-500.0,0.00027397,2]
[340198740,1728826240739,-500.0,0.00027397,2]
[340198741,1728826240748,-500.0,0.00027397,2]
[340198742,1728826240758,-500.0,0.00027397,2]
[340198743,1728826240767,-500.0,0.00027397,2]
[340198744,1728826240777,-212.77104864,0.00027397,2]
[340198745,1728826240788,-500.0,0.00027397,2]
[340198746,1728826240798,-561.03215799,0.00027397,2]
[340198747,1728826240807,-500.0,0.00027397,2]
[340198748,1728826240816,-621.12543238,0.00027397,2]
[340198749,1728826240826,-3805.75,0.00027397,2]
[340198750,1728826240836,-196.65617945,0.00027397,2]
[340198751,1728826240845,-193.26206691,0.00027397,2]
[340198752,1728826240855,-231.19693935,0.00027397,2]
[340198753,1728826240865,-579.78880189,0.00027397,2]
[340198754,1728826240874,-645.70711421,0.00027397,2]
[340198755,1728826240884,-500.0,0.00027397,2]
[340198756,1728826240894,-500.0,0.00027397,2]
[340198757,1728826240903,-500.0,0.00027397,2]
[340198758,1728826240912,-500.0,0.00027397,2]
[340198759,1728826240922,-500.0,0.00027397,2]
[340198760,1728826240931,-547.79438167,0.00027397,2]
[340198761,1728826240941,-40443.43,0.00027397,2]
[340198762,1728826240951,-486.76643586,0.00027397,2]
[340198763,1728826240961,-153.46939193,0.00027397,2]
[340198764,1728826240971,-212.42579064,0.00027397,2]
[340198765,1728826240980,-1917.26,0.00027397,2]
[340198766,1728826240991,-500.0,0.00027397,2]
[340198767,1728826241000,-500.0,0.00027397,2]
[340198768,1728826241010,-500.0,0.00027397,2]
[340198769,1728826241019,-557.42206419,0.00027397,2]
[340198770,1728826241029,-500.0,0.00027397,2]
[340198771,1728826241038,-630.46,0.00027397,2]
[340198772,1728826241047,-500.0,0.00027397,2]
[340198773,1728826241056,-320.56745494,0.00027397,2]
[340198774,1728826241065,-150.16092157,0.00027397,2]
[340198775,1728826241076,-500.0,0.00027397,2]
[340198776,1728826241085,-500.0,0.00027397,2]
[340198777,1728826241095,-500.0,0.00027397,2]
[340198778,1728826241104,-500.0,0.00027397,2]
[340198779,1728826241113,-500.0,0.00027397,2]
[340198780,1728826241122,-342.30222038,0.00027397,2]
[340198781,1728826241132,-500.0,0.00027397,2]
[340198782,1728826241141,-500.0,0.00027397,2]
[340198783,1728826241151,-500.0,0.00027397,2]
[340198784,1728826241161,-1643.64,0.00027397,2]
[340198785,1728826241170,-351.22699,0.00027397,2]
[340198786,1728826241180,-317627.90726089,0.00027515,2]
[340198787,1728826241414,-1166.23,0.0002499,10]
[340198788,1728826241424,-215722.83073011,0.00027515,2]
[340198789,1728826241436,-44878.7612451,0.00027661,4]
[340198790,1728826241447,-500.0,0.00027671,2]
[340198791,1728826241457,-500.0,0.00027671,2]
[340198792,1728826241467,-265.01756597,0.00027671,2]
[340198793,1728826241477,-500.0,0.00027671,2]
[340198794,1728826241486,-320.09709728,0.00027671,2]
[340198795,1728826241496,-500.0,0.00027671,2]
[340198796,1728826241505,-10007.93,0.00027671,2]
[340198797,1728826241514,-500.0,0.00027671,2]
[340198798,1728826241524,-831.87,0.00027671,2]
[340198799,1728826241535,-500.0,0.00027671,2]
[340198800,1728826241545,-2496.31,0.00027671,2]
[340198801,1728826241554,-500.0,0.00027671,2]
[340198802,1728826241564,-209.20171443,0.00027671,2]
[340198803,1728826241573,-500.0,0.00027671,2]
[340198804,1728826241583,-1286.17,0.00027671,2]
[340198805,1728826241593,-512.63862304,0.00027671,2]
[340198806,1728826241603,-500.0,0.00027671,2]
[340198807,1728826241617,-500.0,0.00027671,2]
[340198808,1728826241626,-3805.75,0.00027671,2]
[340198809,1728826241636,-173.42726133,0.00027671,2]
[340198810,1728826241646,-500.0,0.00027671,2]
[340198811,1728826241656,-500.0,0.00027671,2]
[340198812,1728826241665,-343.18156347,0.00027671,2]
[340198813,1728826241674,-500.0,0.00027671,2]
[340198814,1728826241685,-40443.43,0.00027671,2]
[340198815,1728826241695,-1917.26,0.00027671,2]
[340198816,1728826241704,-500.0,0.00027671,2]
[340198817,1728826241714,-310.26463367,0.00027671,2]
[340198818,1728826241723,-500.0,0.00027671,2]
[340198819,1728826241732,-279.99981596,0.00027671,2]
[340198820,1728826241743,-630.46,0.00027671,2]
[340198821,1728826241752,-500.0,0.00027671,2]
[340198822,1728826241761,-500.0,0.00027671,2]
[340198823,1728826241771,-401.10895923,0.00027671,2]
[340198824,1728826241782,-500.0,0.00027671,2]
[340198825,1728826241792,-500.0,0.00027671,2]
[340198826,1728826241801,-500.0,0.00027671,2]
[340198827,1728826241810,-500.0,0.00027671,2]
[340198828,1728826241819,-500.0,0.00027671,2]
[340198829,1728826241828,-499.99632585,0.00027671,2]
[340198830,1728826241838,-1643.64,0.00027671,2]
[340198831,1728826241848,-4543.88,0.00027793,3]
[340198832,1728826241858,-1000.0,0.00027842,5]
[340198833,1728826241868,-1000.0,0.00027842,5]
[340198834,1728826241877,-1107.27323899,0.00027842,5]
[340198835,1728826241887,-1000.0,0.00027842,5]
[340198836,1728826241896,-1000.0,0.00027842,5]
[340198837,1728826241905,-876.31356716,0.00027842,2]
[340198838,1728826241915,-44878.7612451,0.00027935,4]
[340198839,1728826241924,-5324.02111927,0.00027936,2]
[340198840,1728826241934,-500.0,0.00027945,2]
[340198841,1728826241944,-416.44474125,0.00027945,2]
[340198842,1728826241954,-500.0,0.00027945,2]
[340198843,1728826241963,-414.02090558,0.00027945,2]
[340198844,1728826241973,-10007.93,0.00027945,2]
[340198845,1728826241982,-500.0,0.00027945,2]
[340198846,1728826241992,-831.87,0.00027945,2]
[340198847,1728826242002,-500.0,0.00027945,2]
[340198848,1728826242011,-2496.31,0.00027945,2]
[340198849,1728826242021,-353.580738,0.00027945,2]
[340198850,1728826242031,-500.0,0.00027945,2]
[340198851,1728826242040,-1286.17,0.00027945,2]
[340198852,1728826242050,-500.0,0.00027945,2]
[340198853,1728826242059,-500.0,0.00027945,2]
[340198854,1728826242069,-3805.75,0.00027945,2]
[340198855,1728826242146,-500.0,0.00027945,2]
[340198856,1728826242155,-500.0,0.00027945,2]
[340198857,1728826242165,-500.0,0.00027945,2]
[340198858,1728826242174,-40443.43,0.00027945,2]
[340198859,1728826242183,-1917.26,0.00027945,2]
[340198860,1728826242192,-500.0,0.00027945,2]
[340198861,1728826242202,-599.887063,0.00027945,2]
[340198862,1728826242211,-630.46,0.00027945,2]
[340198863,1728826242221,-500.0,0.00027945,2]
[340198864,1728826242231,-500.0,0.00027945,2]
[340198865,1728826242240,-368.91803067,0.00027945,2]
[340198866,1728826242249,-500.0,0.00027945,2]
[340198867,1728826242259,-500.0,0.00027945,2]
[340198868,1728826242268,-500.0,0.00027945,2]
[340198869,1728826242278,-510.50887517,0.00027945,2]
[340198870,1728826242287,-1643.64,0.00027945,2]
[340198871,1728826242297,-1158.90904515,0.0002799,7]
[340198872,1728826242306,-167.751841,0.00028004,2]
[340198873,1728826242319,-167.751841,0.00028017,2]
[340198874,1728826242329,-160.0,0.00028019,10]
[340198875,1728826242338,-151.0,0.00028019,7]
[340198876,1728826242347,-151.0,0.00028019,7]
[340198877,1728826242358,-398.488836,0.00028019,7]
[340198878,1728826242367,-398.488836,0.00028019,7]
[340198879,1728826242377,-520.994609,0.00028019,7]
[340198880,1728826242386,-520.994609,0.00028019,7]
[340198881,1728826242396,-151.0,0.00028019,7]
[340198882,1728826242406,-151.0,0.00028019,7]
[340198883,1728826242415,-151.0,0.00028019,7]
[340198884,1728826242424,-198.520528,0.00028019,7]
[340198885,1728826242434,-198.520528,0.00028019,7]
[340198886,1728826242443,-151.0,0.00028019,7]
[340198887,1728826242453,-182.097533,0.00028019,7]
[340198888,1728826242464,-182.097533,0.00028019,7]
[340198889,1728826242474,-158.771688,0.00028019,7]
[340198890,1728826242483,-158.771688,0.00028019,7]
[340198891,1728826242492,-167.751841,0.0002803,2]
[340198892,1728826242501,-167.751841,0.00028042,2]
[340198893,1728826242511,-167.751841,0.00028055,2]
[340198894,1728826242520,-167.751841,0.00028068,2]
[340198895,1728826242530,-168.65502454,0.00028073,5]
[340198896,1728826242540,-167.751841,0.00028081,2]
[340198897,1728826242549,-167.751841,0.00028093,2]
[340198898,1728826242559,-8275.25,0.000281,30]
[340198899,1728826242568,-167.751841,0.00028106,2]
[340198900,1728826242577,-167.751841,0.00028119,2]
[340198901,1728826242586,-167.751841,0.00028132,2]
[340198902,1728826242596,-167.751841,0.00028144,2]
[340198903,1728826242606,-2763.18,0.000282,14]
[340198904,1728826242619,-1257.12,0.000282,30]
[340198905,1728826242628,-500.0,0.00028207,5]
[340198906,1728826242638,-500.0,0.00028207,5]
[340198907,1728826242647,-500.0,0.00028207,5]
[340198908,1728826242658,-541.23806229,0.00028207,5]
[340198910,1728826242667,-378.27493434,0.00028207,5]
[340198911,1728826242677,-500.0,0.00028207,5]
[340198912,1728826242687,-500.0,0.00028207,5]
[340198913,1728826242698,-500.0,0.00028207,5]
[340198914,1728826242707,-608.73119954,0.00028207,5]
[340198915,1728826242716,-500.0,0.00028207,5]
[340198916,1728826242726,-617.99656522,0.00028219,2]
[340198917,1728826242735,-500.0,0.00028219,2]
[340198918,1728826242745,-10007.93,0.00028219,2]
[340198919,1728826242754,-500.0,0.00028219,2]
[340198920,1728826242763,-831.87,0.00028219,2]
[340198921,1728826242773,-500.0,0.00028219,2]
[340198922,1728826242782,-2496.31,0.00028219,2]
[340198923,1728826242792,-500.0,0.00028219,2]
[340198924,1728826242802,-1286.17,0.00028219,2]
[340198925,1728826242811,-503.48903114,0.00028219,2]
[340198926,1728826242821,-500.0,0.00028219,2]
[340198927,1728826242830,-3805.75,0.00028219,2]
[340198928,1728826242841,-500.0,0.00028219,2]
[340198929,1728826242852,-503.85528385,0.00028219,2]
[340198930,1728826242861,-500.0,0.00028219,2]
[340198931,1728826242871,-40443.43,0.00028219,2]
[340198932,1728826242880,-1917.26,0.00028219,2]
[340198933,1728826242890,-500.0,0.00028219,2]
[340198934,1728826242901,-630.46,0.00028219,2]
[340198935,1728826242910,-500.0,0.00028219,2]
[340198936,1728826242920,-500.0,0.00028219,2]
[340198937,1728826242929,-500.0,0.00028219,2]
[340198938,1728826242939,-375.59169696,0.00028219,2]
[340198939,1728826242949,-500.0,0.00028219,2]
[340198940,1728826242959,-1643.64,0.00028219,2]
[340198941,1728826242968,-500.0,0.00028493,2]
[340198942,1728826242978,-10007.93,0.00028493,2]
[340198943,1728826242988,-501.6063029,0.00028493,2]
[340198944,1728826242998,-831.87,0.00028493,2]
[340198945,1728826243007,-500.0,0.00028493,2]
[340198946,1728826243017,-2496.31,0.00028493,2]
[340198947,1728826243026,-500.0,0.00028493,2]
[340198948,1728826243036,-1286.17,0.00028493,2]
[340198949,1728826243045,-500.0,0.00028493,2]
[340198950,1728826243054,-3805.75,0.00028493,2]
[340198951,1728826243064,-237.29148,0.00028493,2]
[340198952,1728826243073,-500.0,0.00028493,2]
[340198953,1728826243082,-40443.43,0.00028493,2]
[340198954,1728826243091,-1917.26,0.00028493,2]
[340198955,1728826243101,-500.0,0.00028493,2]
[340198956,1728826243110,-630.46,0.00028493,2]
[340198957,1728826243120,-500.0,0.00028493,2]
[340198958,1728826243130,-500.0,0.00028493,2]
[340198959,1728826243139,-500.0,0.00028493,2]
[340198960,1728826243149,-500.0,0.00028493,2]
[340198961,1728826243158,-1643.64,0.00028493,2]
[340198962,1728826243167,-152.0,0.0002864,5]
[340198964,1728826243178,-1000.0,0.00028742,5]
[340198966,1728826243186,-512.51084761,0.00028767,2]
[340198967,1728826243196,-10007.93,0.00028767,2]
[340198969,1728826243205,-831.87,0.00028767,2]
[340198971,1728826243215,-500.0,0.00028767,2]
[340198973,1728826243224,-2496.31,0.00028767,2]
[340198975,1728826243234,-500.0,0.00028767,2]